Cogmind - Beta 13 *** ADVENTURER MODE // 2024.07.03 @ 21:38:09 Player: Imrayya Result: Self-destructed Performance ------------- Evolutions (1) 500 Regions Visited (3) 600 Robots Destroyed (7) 35 Value Destroyed (105) 105 Prototype IDs (2) 40 Alien Tech Used (0) 0 Bonus (0) 0 TOTAL SCORE: 1280 Bonus ------- None Cogmind --------- Core Integrity 338/400 Matter 264/300 Energy 89/100 System Corruption 8% Temperature Warm (190) Movement Flying (40) Location -9/Materials Parts ------- > --- POWER (1) -------- (None) > --- PROPULSION (3) --- Flight Unit > --- UTILITY (2) ------ Weight Redist. System > --- WEAPON (3) ------- Small Laser > --- INVENTORY (5) ---- Ion Engine Small Storage Unit Medium Laser Light Assault Rifle Peak State ------------ > --- POWER ------------ Light Ion Engine > --- PROPULSION ------- Flight Unit Flight Unit Improved Flight Unit > --- UTILITY ---------- Weight Redist. System > --- WEAPON ----------- Improved EM Shotgun Medium Laser Small Laser > --- INVENTORY -------- Ion Engine Small Storage Unit Medium Laser Light Assault Rifle [Rating: 13] Favorites ----------- Power Ion Engine Engine Ion Engine Propulsion Flight Unit Wheel Compact Wheel Flight Unit Flight Unit Utility Small Storage Unit Device Weight Redist. System Storage Small Storage Unit Weapon Medium Laser Energy Gun Medium Laser Build | -11 -10 -10 -9 ------- Run | Yrd Mat Min Mat Slots Evolved 2 | . . . 2 Power . | . . . . Propulsion 1 | . . . 1 Utility . | . . . . Weapon 1 | . . . 1 Parts Attached 13 | 6 . 4 3 Power 2 | 1 . 1 . Engine 2 | 1 . 1 . Core . | . . . . Reactor . | . . . . Propulsion 5 | 2 . 2 1 Treads . | . . . . Leg . | . . . . Wheel 2 | 2 . . . Hover . | . . . . Flight 3 | . . 2 1 Utility 2 | 1 . . 1 Device 1 | . . . 1 Storage 1 | 1 . . . Processor . | . . . . Hackware . | . . . . Protection . | . . . . Artifact . | . . . . Weapon 4 | 2 . 1 1 Energy Gun 4 | 2 . 1 1 Energy Cannon . | . . . . Ballistic Gun . | . . . . Ballistic Cannon . | . . . . Launcher . | . . . . Special Weapon . | . . . . Impact Weapon . | . . . . Slashing Weapon . | . . . . Piercing Weapon . | . . . . Special Melee Weapon . | . . . . Unidentified Prototypes 2 | . . . 2 Parts Lost 5 | . . . 5 Power 1 | . . . 1 Propulsion 2 | . . . 2 Utility . | . . . . Weapon 2 | . . . 2 Highest Loss Streak 5 | . . . 5 To Critical Strikes . | . . . . Average Slot Usage (%) 79 | . 85 78 76 Engine 12 | . 14 14 11 Wheel 12 | . 28 9 . Flight 15 | . . 18 28 Device 3 | . . . 8 Storage 6 | . 14 7 . Energy Gun 28 | . 28 28 28 Naked Turns . | . . . . Heaviest Build 14 | 14 14 14 9 Greatest Support 32 | 32 32 32 14 Greatest Overweight (x) 1 | . . 1 . Average Overweight (x) . | . . . . Largest Inventory Capacity 8 | 8 8 8 5 Average Capacity 6 | 6 8 6 5 Most Carried 5 | 5 2 5 5 Average Carried 3 | 2 2 3 4 Final Capacity 8 | 8 8 5 5 Final Carried 4 | 2 2 4 4 Class Distribution -------------------- 100% | Mutant Dominant Class ---------------- Mutant | -10/Materials Mutant | -10/Mines Mutant | -9/Materials Resources | -11 -10 -10 -9 ----------- Run | Yrd Mat Min Mat Matter Collected 275 | 175 . 42 58 Remotely . | . . . . Salvage Created 146 | . . 42 104 Parts 15 | . . 4 11 Haulers Intercepted . | . . . . Recyclers Shooed . | . . . . Parts Field Recycled . | . . . . Retrieved Matter . | . . . . Parts Self-Destructed . | . . . . Prevented . | . . . . Kills | -11 -10 -10 -9 ------- Run | Yrd Mat Min Mat Combat Hostiles Destroyed 7 | . . 3 4 Guns 7 | . . 3 4 Classes Destroyed 2 | . . 1 1 Swarmer 6 | . . 3 3 Sentry 1 | . . . 1 Best Kill Streak 3 | . . 3 3 Combat Bots Only 3 | . . 3 3 Max Kills in Single Turn 2 | . . 1 2 Gunslinging 1 | . . . 1 Exploded . | . . . . Melee . | . . . . Uniques/NPCs Destroyed . | . . . . Combat | -11 -10 -10 -9 -------- Run | Yrd Mat Min Mat Hostile Shots Fired 41 | . . 6 35 Missed 10 | . . 1 9 Damage Taken 296 | . . 31 265 Core 69 | . . 7 62 Absorbed by Shields . | . . . . Ignored by Resistances 88 | . . 10 78 Core Remaining (%) 98 | 100 . 97 . Volleys Fired 13 | . . 3 10 Largest 2 | . . 2 2 Hottest 100 | . . 100 90 Shots Fired 26 | . . 6 20 Gun 26 | . . 6 20 Cannon . | . . . . Launcher . | . . . . Special . | . . . . Kinetic . | . . . . Thermal 26 | . . 6 20 Explosive . | . . . . Electromagnetic . | . . . . Robot Hit Streak 5 | . . 2 5 Robot Miss Streak 2 | . . 1 2 Penetration Max . | . . . . Secondary Targets 3 | . . 1 2 Max Gunslinging Chain 1 | . . 1 1 Shots Hit Robots 17 | . . 4 13 Core Hits 9 | . . 3 6 Critical Kills . | . . . . Critical Parts Destroyed . | . . . . Critical Strikes 1 | . . 1 . Burn 1 | . . 1 . Melee Attacks . | . . . . Impact . | . . . . Slashing . | . . . . Piercing . | . . . . Sneak Attacks . | . . . . Combat Hostiles . | . . . . Follow-up Attacks . | . . . . Damage Inflicted 215 | . . 61 154 Guns 215 | . . 61 154 Cannons . | . . . . Explosions . | . . . . Melee . | . . . . Ramming . | . . . . Kinetic . | . . . . Thermal 215 | . . 61 154 Explosive . | . . . . Electromagnetic . | . . . . Impact . | . . . . Slashing . | . . . . Piercing . | . . . . Highest Corruption 8 | . . . 8 Average Corruption 7 | . . . 7 Corruption Purged . | . . . . Corruption Blocked . | . . . . Effects 3 | . . . 3 Message Errors 1 | . . . 1 Matter Fused 1 | . . . 1 Parts Fused 1 | . . . 1 Overload Shots . | . . . . Overflow Damage . | . . . . Projectiles . | . . . . Explosions . | . . . . Melee . | . . . . Knockbacks . | . . . . Impact . | . . . . Kinetic . | . . . . Secondary . | . . . . Self-Inflicted Damage . | . . . . Shots . | . . . . Rammed . | . . . . Targets Rammed . | . . . . Kicked . | . . . . Crushed . | . . . . Highest Temperature 211 | . . 117 211 Average Temperature 84 | . . 62 93 Received Heat Transfer 39 | . . . 39 Effects 2 | . . . 2 Interference 2 | . . . 2 Siege Activations . | . . . . Robots Corrupted . | . . . . Combat Hostiles . | . . . . Parts Fried . | . . . . Impact Corruptions . | . . . . Robots Melted . | . . . . Combat Hostiles . | . . . . Parts Melted 1 | . . . 1 Heat Transferred 680 | . . 259 421 Parts Sabotaged . | . . . . Parts Stolen . | . . . . Parts Stripped . | . . . . Power Chain Reactions . | . . . . Alert | -11 -10 -10 -9 ------- Run | Yrd Mat Min Mat Peak Influence 334 | . 15 74 334 Initial 24 | . . 4 24 Average 63 | . 5 70 136 Maximum Alert Level 1 | . . . 1 Low Security (%) 88 | 100 100 100 68 Level 1 11 | . . . 31 Level 2 . | . . . . Level 3 . | . . . . Level 4 . | . . . . Level 5 . | . . . . High Security . | . . . . Max Security . | . . . . Squads Dispatched 1 | . . . 1 Investigation . | . . . . Extermination . | . . . . Reinforcement 1 | . . . 1 Assault . | . . . . Garrison . | . . . . Intercept . | . . . . Searches Triggered . | . . . . Construction Impeded . | . . . . Haulers Reinforced . | . . . . Active Scanning Responses . | . . . . Cargo Convoy Interrupts . | . . . . Stealth | -11 -10 -10 -9 --------- Run | Yrd Mat Min Mat Distress Signals 3 | . . . 3 Communications Jammed . | . . . . Distress Signals . | . . . . Times Spotted 22 | . 2 2 18 Peak Tracking Total 13 | . 2 2 13 Tactical Retreats 4 | . . . 4 Traps | -11 -10 -10 -9 ------- Run | Yrd Mat Min Mat Traps Triggered . | . . . . Indirectly . | . . . . Trap Hack Attempts . | . . . . Triggered . | . . . . Disarmed . | . . . . Reprogrammed . | . . . . Reused . | . . . . Traps Extracted . | . . . . Installed . | . . . . Triggered . | . . . . Machines | -11 -10 -10 -9 ---------- Run | Yrd Mat Min Mat Machines Disabled . | . . . . Max in Single Turn . | . . . . Machines Repaired . | . . . . Machines Dismantled . | . . . . Machines Sabotaged . | . . . . Overloaded Fab Kills . | . . . . Hacking | -11 -10 -10 -9 --------- Run | Yrd Mat Min Mat Machines Accessed 2 | . . . 2 Terminals 1 | . . . 1 Fabricators . | . . . . Repair Stations . | . . . . Recycling Units 1 | . . . 1 Scanalyzers . | . . . . Garrison Access . | . . . . Total Hacks 4 | . . . 4 Successful 2 | . . . 2 Failed 2 | . . . 2 Catastrophic . | . . . . Database Lockouts . | . . . . Manual . | . . . . Terminals 2 | . . . 2 Fabricators . | . . . . Repair Stations . | . . . . Recycling Units 2 | . . . 2 Scanalyzers . | . . . . Garrison Access . | . . . . Terminal Hacks . | . . . . Fabricator Hacks . | . . . . Repair Station Hacks . | . . . . Recycling Unit Hacks 2 | . . . 2 Process 2 | . . . 2 Scanalyzer . | . . . . Garrison Access Hacks . | . . . . Unauthorized Hacks . | . . . . Terminals . | . . . . Fabricators . | . . . . Repair Stations . | . . . . Recycling Units . | . . . . Scanalyzers . | . . . . Garrison Access . | . . . . Data Cores Recovered . | . . . . Used . | . . . . Hacking Detections 2 | . . . 2 Full Trace Events . | . . . . Feedback Events . | . . . . Feedback Blocked . | . . . . Robot Schematics Acquired . | . . . . Robots Built . | . . . . Authchips . | . . . . Time . | . . . . Total Robot Build Rating . | . . . . Part Schematics Acquired . | . . . . Parts Built . | . . . . Authchips . | . . . . Time . | . . . . Total Part Build Rating . | . . . . Parts Repaired . | . . . . Time . | . . . . Parts Recycled . | . . . . Recycled Matter 8 | . . . 8 Retrieved Matter . | . . . . Retrieved Components . | . . . . Parts Scanalyzed . | . . . . Part Schematics Acquired . | . . . . Parts Damaged . | . . . . Bothacking | -11 -10 -10 -9 ------------ Run | Yrd Mat Min Mat Used RIF Installer . | . . . . Robots Hacked . | . . . . Non-combat . | . . . . Combat . | . . . . Robot Hacks Applied . | . . . . Relay Couplers Released . | . . . . Fabnet Peak Effective % . | . . . . Robots Rewired . | . . . . Allies Hacked . | . . . . Hacks Repelled . | . . . . Allies | -11 -10 -10 -9 -------- Run | Yrd Mat Min Mat Total Allies . | . . . . Largest Group . | . . . . Highest-Rated Group . | . . . . Highest-Rated Ally . | . . . . Total Orders . | . . . . Ally Attacks . | . . . . Total Damage . | . . . . Kills . | . . . . Allies Corrupted . | . . . . Allies Melted . | . . . . Intel | -11 -10 -10 -9 ------- Run | Yrd Mat Min Mat Robot Analysis Total . | . . . . Derelict Logs Recovered . | . . . . Drone Launches . | . . . . Drone Recoveries . | . . . . Exploration | -11 -10 -10 -9 ------------- Run | Yrd Mat Min Mat Turns Passed 338 | 46 112 57 123 Spaces Moved 464 | 34 113 85 232 Core 11 | 11 . . . Treads . | . . . . Legs . | . . . . Wheels 141 | 23 113 5 . Hover . | . . . . Flight 312 | . . 80 232 Fastest Speed 37 | 50 100 37 37 Average Speed 56 | 83 100 43 37 Slowest Speed 117 | 100 100 117 37 Overloaded Moves . | . . . . Propulsion Burnouts . | . . . . Robots Hopped . | . . . . Cave-ins Triggered . | . . . . Exploration Rate (%) 25 | 3 33 29 38 Regions Visited 3 Branch Regions 1 Pre-discovered Areas . | . . . . Known Exits Taken . | . . . . Unknown Exits Taken 3 | 1 1 1 . Scrap Searched . | . . . . Spaces Dug . | . . . . Terrain Destroyed . | . . . . Melee . | . . . . Projectile . | . . . . AOE . | . . . . Terrain Rammed . | . . . . Walls Destroyed . | . . . . Machines Disabled . | . . . . Actions | -11 -10 -10 -9 --------- Run | Yrd Mat Min Mat Total 507 | 50 112 97 248 Wait 6 | 5 . . 1 Move 461 | 33 112 84 232 Hop . | . . . . Pick Up 11 | 6 . 3 2 Fast Attach 3 | 2 . . 1 Attach 6 | 4 . . 2 Detach 1 | . . 1 . Swap 4 | . . 4 . Drop 2 | . . 2 . Fire 13 | . . 3 10 Melee . | . . . . Ram . | . . . . Kick . | . . . . Crush . | . . . . Escape Stasis . | . . . . Rewire . | . . . . Trap . | . . . . Miscellaneous . | . . . . Route ------- -11/Scrapyard -10/Materials -10/Mines -9/Materials History --------- Turn | Location | Event 15 | -11/Scrapyard | Discovered new exit (range 16) 47 | -11/Scrapyard | Entered Materials 78 | -10/Materials | Discovered new exit (range 7) 159 | -10/Materials | Entered Mines 204 | -10/Mines | Discovered new exit (range 15) 216 | -10/Mines | Entered Materials 216 | -9/Materials | Evolved 2 slots: Propulsion x1, Weapon x1 307 | -9/Materials | Build established: Mutant 339 | -9/Materials | Self-destructed Last Messages --------------- 00309_ W-16 Scout distress signal alerts nearby ally. 00319_ System corrupted: Flight Unit fused. 00320_ S-10 Pest destroyed. 00320_ Switching to secondary target: S-10 Pest. 00320_ S-10 Pest destroyed. 00320_ K-01 Serf collects debris. 00326_ S-10 Pest destroyed. 00326_ Switching to secondary target: L-31 Rogue. 00326_ K-01 Serf collects debris. 00330_ Faulty Imp. Flight Unit destroyed. 00330_ Faulty Imp. EM Shotgun destroyed. 00333_ K-01 Serf collects debris. 00334_ ET#JHJ5PR&65N2CLNXCQAJI 00334_ Lgt. Ion Engine destroyed. 00335_ Med. Laser destroyed. 00335_ Flight Unit destroyed. 00338_ Overheating: System interference. 00338_ Weight Redist. System temporarily disabled. 00338_ Sml. Laser temporarily disabled. 00338_ K-01 Serf collects debris. Map ----- +----------------------------------------------------+ | ?????????????????????????????????????????????????? | | ?????????????????????????????????????????????????? | | ?????????????????????????????????????????????????? | | ?????????????????????????? ???????????????????? | | ?????????????????????????? ???????????????????? | | ?????????????????????????? ???????????????????? | | ?????????????????????????? ???????????????????? | | ??????????????????????????# ???????????????????? | | ??????????????????????????# #??????????????????? | | ??????????????????????????# #######+??#????????? | | ??????????????????????????# ? ???????? | | ??????????????????????????# ???????? | | ??????????????????????????+ ???????? | | ??????????????????????????# """ """ """??? ? | | ??????????????????????????# """ """ """ # | | ??????????????????????????# """ """ """ # | | ??????????????????????????# """ """ # | | ?????????????????????+????# """ """ # | | ????????????????????# #???# + | | ????????????????????# #???# # | | ????????????????????# #???# ##### ######## # | | ????????????????????# #???# #???#+#??#?????????? | | ????????????????????# #???# #?????? #?????????? | | ????????????????????# #???# #???? #?????????? | | ????#############??## #####Y #?? #?????????? | | ????# #??# @%*= # #?????????? | | ????# #### l[%s + #?????????? | | ????# / g k[ # #?????????? | | ????# #####+#########?? #?????????? | | ????# #?? ??????????? #?????????? | | ????# # ??????????? #?????????? | | ????# # """ #????????????#?????????? | | ????######+###### """"" #??????????????????????? | | ??????#?# #???# """"" #??????????????????????? | | ??????# # #???# ! """"" #??????????????????????? | | ??????# #???# """??#??????????????????????? | | ??????# # #???# ????????????????????????????? | | ??????### ##??###+?????????????????????????????? | | ???????# ###### ### ????????????????????????? | | ???????# ! ???????????????????????? | | ???????# * = ???????????????????????? | | ???????# [ ???????????????????????? | | ???????# #######+##" ????????????????????????? | | ##########+######????????????????????????????????? | | + #????????????????????????????????? | | ##### #????????????????????????????????? | | ????# #????????????????????????????????? | | ????# "" """ #????????????????????????????????? | | ????# "Y """ #????????????????????????????????? | | ????# "" """ ! #????????????????????????????????? | +----------------------------------------------------+ Best States ------------- Heat Dissipation 28 Energy Generation 10 Energy Capacity 250 Matter Stores 239 Matter Capacity 300 Sight Range 16 Terrain Scan Density 10 Additional Mass Support 6 Resistance: KI 20 Resistance: TH 20 Resistance: EX 20 Resistance: EM 20 Resistance: I 20 Resistance: S 20 Resistance: P 20 Evasion (%) 62 Offensive Hacking 10 Item Schematics ----------------- None Robot Schematics ------------------ None Fabricated ------------ Nothing Alien Tech Used ----------------- None Achievements -------------- None Challenges ------------ None Game ------ Seed MediumRecyclingProtection Manual? 0 Play Time 00:07:05 Cumulative 3.8 hours Start 2024.06.06 @ 18:38:07 End 2024.07.03 @ 21:38:09 Sessions 3 Manual Loads 0 Difficulty Adventurer Special Mode None Game No. 6 Rogue 0 Adventurer 6 Explorer 0 Win Type - Total 0 Types 0/0/0/0/0/0/0/0/0 Lore% 11 Gallery% 15 Achievement% 13 Wizard Run 0 Options --------- Layout 0 ASCII 0 Keyboard 0 Movement Mouse Keybinds 0 Fullscreen 2 Font 36/Smallcaps Map View 76x50 Zoom Use 0% Tactical HUD 1 Map Filters NONE Filters NONE Steam 1 RUN: 7ba170d8-77ea-4f68-9fbc-db4d23447b2e